[Event "DVM U14 2019"]
[Site "Magedburg"]
[Date "2019.12.30"]
[Round "7"]
[White "Frank, Marek"]
[Black "Berresheim, Nils"]
[Result "0-1"]
[ECO "A20"]
[WhiteElo "1430"]
[BlackElo "1509"]
[Annotator "NA"]
[PlyCount "85"]
[EventDate "2019.12.27"]
[EventType "team-tourn"]
[EventRounds "7"]
[EventCountry "GER"]
[SourceTitle "playchess.com"]
[Source "ChessBase"]
[SourceQuality "1"]
[WhiteTeam "ESV Gera"]
[BlackTeam "SF Essen-Katernberg"]
[WhiteTeamCountry "GER"]
[BlackTeamCountry "GER"]
[TimeControl "40/5400+30:1800+30"]

1. c4 {[%emt 0:00:00]} e5 {[%emt 0:00:00]} 2. g3 {[%emt 0:00:18]} Nf6 {[%emt 0:00:11]} 3. Bg2 {[%emt 0:00:09]} Nc6 {[%emt 0:00:27]} 4. a3 {[%emt 0:01:24]} a6 {[%emt 0:03:10]} 5. Nc3 {[%emt 0:01:15]} Bc5 {[%emt 0:01:20]} 6. e3 {[%emt 0:00:27]} O-O {[%emt 0:02:20]} 7. Nge2 {[%emt 0:00:18]} h6 {[%emt 0:08:13]} 8. O-O {[%emt 0:01:50]} d6 {[%emt 0:00:31]} 9. Qc2 {[%emt 0:06:26]} Ba7 {[%emt 0:06:02]} 10. b4 {[%emt 0:05:09]} Bg4 {[%emt 0:04:48]} 11. d3 {[%emt 0:06:27]} Qd7 {[%emt 0:02:34]} 12. b5 {[%emt 0:06:21]} axb5 13. cxb5 {[%emt 0:01:13]} Nd8 {[%emt 0:03:15]} 14. a4 {[%emt 0:18:14]} Bh3 {[%emt 0:02:48]} 15. Rd1 {[%emt 0:01:34]} Bxg2 {[%emt 0:00:51]} 16. Kxg2 {[%emt 0:00:06]} Ne6 {[%emt 0:00:42]} 17. Ba3 {[%emt 0:06:02]} Ng5 {[%emt 0:04:28]} 18. Ng1 {[%emt 0:00:56]} Rfe8 {[%emt 0:08:22]} 19. h4 {[%emt 0:04:08]} Ne6 {[%emt 0:01:16]} 20. Nf3 {[%emt 0:04:11]} Ng4 {[%emt 0:02:11]} 21. Qe2 {[%emt 0:02:59]} f5 {[%emt 0:04:47]} 22. Nh2 {[%emt 0:07:06]} Nxh2 {[%emt 0:02:32]} 23. Kxh2 {[%emt 0:00:07]} f4 {[%emt 0:01:15]} 24. Rab1 {[%emt 0:08:03]} Rf8 {[%emt 0:06:40]} 25. Nd5 {[%emt 0:03:53]} Bb8 {[%emt 0:09:25]} 26. Rb4 {[%emt 0:02:56]} fxg3+ {[%emt 0:03:18]} 27. fxg3 {[%emt 0:00:09]} Nc5 {[%emt 0:01:17]} 28. d4 {[%emt 0:05:26]} Ne4 {[%emt 0:04:20]} 29. Rf1 {[%emt 0:01:45]} Rxf1 {[%emt 0:01:04]} 30. Qxf1 {[%emt 0:00:07]} Qe6 {[%emt 0:01:00]} 31. Qc4 {[%emt 0:01:37]} Kh8 {[%emt 0:01:55]} 32. dxe5 {[%emt 0:02:23]} Nd2 {[%emt 0:01:48]} 33. Qa2 {[%emt 0:00:13]} Nf1+ 34. Kg2 {[%emt 0:00:26]} Nxe3+ {[%emt 0:00:47]} 35. Kh2 {[%emt 0:01:08]} Qxd5 {[%emt 0:01:41]} 36. Qe2 {[%emt 0:02:09]} Ba7 {[%emt 0:03:29]} 37. b6 {[%emt 0:00:13]} Bxb6 {[%emt 0:00:32]} 38. Rxb6 {[%emt 0:00:21]} cxb6 {[%emt 0:00:32]} 39. Qxe3 {[%emt 0:00:06]} dxe5 {[%emt 0:01:02]} 40. Qf2 {[%emt 0:01:37]} Rd8 {[%emt 0:01:18]} 41. Kh3 {[%emt 0:30:34]} Qe6+ {[%emt 0:32:42]} 42. Kh2 {[%emt 0:00:43]} e4 {[%emt 0:00:29]} 43. Bc1 {[%emt 0:00:29] normal} 0-1